bitfinex-derivatives/quotes_SOLF0:USTF0_20230105
["timestamp","ask_amount","ask_price","bid_price","bid_amount"]
[1672956107021,468.01813046,13.446,13.437,22.30112107]
[1672956107961,468.01813046,13.446,13.437,59.52812107]
[1672956108173,10.0,13.445,13.437,59.52812107]
[1672956108384,222.5,13.442,13.437,59.52812107]
[1672956110060,296.913,13.445,13.437,133.98212107]
[1672956110273,10.0,13.444,13.439,22.11]
[1672956110483,10.0,13.444,13.439,59.331]
[1672956110692,222.5,13.442,13.439,22.11]
[1672956111844,222.5,13.443,13.439,22.11]
[1672956112061,259.714,13.442,13.439,59.331]
[1672956115952,259.714,13.442,13.44,10.0]
[1672956116164,222.5,13.443,13.441,22.24]
[1672956116370,222.43974629,13.443,13.442,32.11]
[1672956116582,222.43974629,13.443,13.442,69.323]
[1672956116792,222.43974629,13.443,13.442,59.323]
[1672956117317,0.06313046,13.446,13.442,59.323]
[1672956117529,259.63974629,13.447,13.442,59.323]
[1672956117739,222.43974629,13.447,13.442,59.323]
[1672956118370,222.50079317,13.449,13.442,59.323]
[1672956119528,259.69579317,13.449,13.442,59.323]
[1672956119950,0.06104688,13.449,13.447,22.1]
[1672956120259,222.43974629,13.45,13.447,22.1]
[1672956121314,0.06948272,13.453,13.447,22.1]
[1672956121528,222.43974629,13.451,13.447,133.697]
[1672956122050,222.43974629,13.451,13.447,59.298]
[1672956122364,259.63074629,13.451,13.447,59.298]
[1672956122573,222.43974629,13.452,13.447,59.298]
[1672956122783,222.43974629,13.452,13.45,37.191]
[1672956123413,222.43974629,13.452,13.451,22.24]
[1672956123624,222.43974629,13.453,13.452,37.185]
[1672956124783,222.43974629,13.454,13.452,37.185]
[1672956129198,259.61574629,13.456,13.452,37.185]
[1672956129407,10.0,13.455,13.452,37.185]
[1672956129930,222.43974629,13.456,13.452,37.185]
[1672956130876,259.61474629,13.456,13.452,37.185]
[1672956131297,259.47333309,13.456,13.452,37.185]
[1672956136025,259.47333309,13.456,13.451,37.187]
[1672956139284,259.47333309,13.456,13.45,29.62]
[1672956139487,259.47333309,13.456,13.451,37.188]
[1672956142120,259.47333309,13.456,13.45,66.809]
[1672956143593,0.06665585,13.457,13.453,29.4]
[1672956143805,162.36682983,13.46,13.456,29.48]
[1672956144011,162.29833309,13.46,13.458,29.51]
[1672956144643,37.167,13.459,13.458,29.51]
[1672956145384,199.46333309,13.46,13.458,29.51]
[1672956148116,199.46333309,13.46,13.459,22.19]
[1672956150950,199.46033309,13.461,13.459,59.356]
[1672956151576,199.46033309,13.461,13.459,22.19]
[1672956152420,199.46033309,13.461,13.459,59.355]
[1672956155047,37.159,13.462,13.459,59.355]
[1672956155572,199.45433309,13.463,13.459,59.355]
[1672956156625,199.51076927,13.465,13.462,37.157]
[1672956156825,199.44933309,13.465,13.462,37.157]
[1672956157039,162.29833309,13.465,13.462,37.157]
[1672956157463,162.13293631,13.465,13.462,37.157]
[1672956158195,199.27993631,13.467,13.462,37.157]
[1672956158618,10.0,13.466,13.462,37.157]
[1672956158827,47.148,13.466,13.462,37.157]
[1672956159039,37.148,13.466,13.462,37.157]
[1672956159563,199.28093631,13.466,13.462,37.157]
[1672956161141,162.13293631,13.463,13.459,22.25117394]
[1672956161350,162.13293631,13.463,13.459,22.19]
[1672956161664,10.0,13.462,13.459,22.19]
[1672956162294,162.13293631,13.463,13.459,22.19]
[1672956162926,37.158,13.462,13.459,59.355]
[1672956163453,37.158,13.462,13.459,22.19]
[1672956163656,10.0,13.461,13.459,22.19]
[1672956163869,162.13293631,13.459,13.456,0.06326026]
[1672956164075,10.0,13.458,13.455,22.19]
[1672956164394,162.13293631,13.459,13.455,22.19]
[1672956164599,162.13293631,13.457,13.455,22.19]
[1672956165551,162.13293631,13.457,13.455,59.367]
[1672956165763,37.172,13.457,13.455,22.19]
[1672956166292,199.30493631,13.457,13.455,22.19]
[1672956167966,37.172,13.457,13.455,22.19]
[1672956168181,162.13293631,13.458,13.455,59.367]
[1672956169230,0.06549567,13.462,13.455,59.367]
[1672956169441,10.0,13.459,13.455,59.367]
[1672956169857,162.13293631,13.46,13.455,59.367]
[1672956170387,199.30093631,13.459,13.455,59.367]
[1672956171543,199.30093631,13.459,13.455,22.19]
[1672956172274,0.06549567,13.462,13.456,10.0]
[1672956172489,0.06549567,13.462,13.46,22.19]
[1672956172701,10.06027718,13.466,13.46,22.19]
[1672956173118,37.156,13.463,13.461,37.161]
[1672956173541,10.0,13.464,13.461,37.161]
[1672956173750,37.154,13.464,13.461,37.161]
[1672956173958,222.5,13.465,13.462,22.19]
[1672956174169,222.5,13.465,13.462,59.347]
[1672956174378,0.06027718,13.466,13.462,59.347]
[1672956174594,37.15,13.465,13.462,59.347]
[1672956174801,10.0,13.464,13.462,59.347]
[1672956175006,10.0,13.464,13.462,22.19]
[1672956175224,37.154,13.464,13.462,22.19]
[1672956175433,10.0,13.466,13.462,22.19]
[1672956176057,37.151,13.465,13.462,59.347]
[1672956176905,259.651,13.465,13.462,59.347]
[1672956177111,259.651,13.465,13.462,22.19]
[1672956178165,37.148,13.466,13.462,22.19]
[1672956178379,222.56289952,13.469,13.465,22.19]
[1672956178589,222.5,13.469,13.465,22.19]
[1672956178799,222.5,13.469,13.465,59.339]
[1672956179222,0.06393641,13.472,13.467,22.19]
[1672956179537,0.06393641,13.472,13.467,59.332]
[1672956180165,0.06393641,13.472,13.467,59.09680714]
[1672956182901,0.06393641,13.472,13.467,21.95480714]
[1672956185421,0.06393641,13.472,13.467,59.09880714]
[1672956187105,0.06393641,13.472,13.467,21.95480714]
[1672956187315,0.06393641,13.472,13.469,22.19]
[1672956187629,0.06431602,13.475,13.469,22.19]
[1672956187837,232.5,13.476,13.469,22.19]
[1672956190569,232.5,13.476,13.469,59.328]
[1672956190884,232.5,13.476,13.469,22.19]
[1672956192566,222.5,13.476,13.469,59.328]
[1672956192883,222.31617428,13.476,13.47,10.0]
[1672956193614,222.31617428,13.476,13.47,47.136]
[1672956193825,0.06911497,13.477,13.471,22.19]
[1672956194769,0.06911497,13.477,13.471,59.322]
[1672956194975,222.5,13.488,13.476,22.19]
[1672956195189,10.0,13.486,13.479,22.19]
[1672956195610,254.69,13.48,13.466,22.16]
[1672956195813,22.19,13.475,13.466,22.16]
[1672956196025,232.5,13.474,13.466,22.22953062]
[1672956197083,232.5,13.474,13.466,59.37553062]
[1672956200756,232.5,13.474,13.466,22.22953062]
[1672956202024,232.5,13.474,13.466,59.37553062]
[1672956204547,232.5,13.474,13.466,22.22953062]
[1672956205176,232.5,13.474,13.466,59.37553062]
[1672956205379,232.5,13.474,13.466,22.22953062]
[1672956206752,232.5,13.474,13.466,59.37553062]
[1672956207383,32.19,13.474,13.466,37.21553062]
[1672956207592,222.5,13.473,13.466,37.21553062]
[1672956207805,10.0,13.472,13.466,37.21553062]
[1672956208744,9.82443783,13.472,13.466,37.21553062]
[1672956209793,39.63443783,13.472,13.466,0.06953062]
[1672956210008,222.5,13.471,13.466,0.06953062]
[1672956210219,10.0,13.47,13.466,0.06953062]
[1672956210535,10.0,13.47,13.463,10.06945748]
[1672956210853,222.56773144,13.471,13.468,29.69]
[1672956211063,0.06268688,13.474,13.469,10.0]
[1672956211273,10.06595711,13.476,13.469,47.138]
[1672956211586,10.06595711,13.476,13.469,37.138]
[1672956213063,222.5,13.473,13.469,37.138]
[1672956214112,222.56595711,13.476,13.469,37.138]
[1672956214425,222.56595711,13.476,13.47,29.69]
[1672956214631,222.56595711,13.476,13.472,29.52]
[1672956214842,222.5,13.476,13.472,29.52]
[1672956215260,222.5,13.476,13.473,37.127]
[1672956216211,0.06136458,13.479,13.475,140.986]
[1672956216421,222.5,13.48,13.477,29.67]
[1672956216840,222.5,13.48,13.479,39.52]
[1672956217051,222.5,13.48,13.479,29.52]
[1672956217366,0.06955124,13.483,13.479,140.853]
[1672956217577,0.06511603,13.486,13.479,140.853]
[1672956217786,0.06511603,13.486,13.48,10.0]
[1672956218097,222.56511603,13.486,13.482,29.62]
[1672956218306,222.5,13.486,13.482,29.62]
[1672956218521,222.5,13.486,13.483,37.099]
[1672956218727,0.07129217,13.489,13.483,37.099]
[1672956219047,0.07129217,13.489,13.485,37.093]
[1672956219258,10.0,13.491,13.485,37.093]
[1672956219674,222.56308245,13.492,13.485,37.093]
[1672956219990,0.06308245,13.492,13.486,39.67]
[1672956220202,259.63808245,13.492,13.487,37.088]
[1672956220408,259.63808245,13.492,13.486,29.67]
[1672956221147,10.0,13.491,13.486,29.67]
[1672956221357,222.5,13.489,13.486,29.67]
[1672956221989,259.584,13.489,13.486,29.67]
[1672956222514,0.06308245,13.492,13.486,29.67]
[1672956222721,222.31674483,13.489,13.486,29.67]
[1672956222933,10.0,13.488,13.484,0.07056973]
[1672956223144,10.0,13.488,13.482,29.62]
[1672956223354,222.31674483,13.487,13.482,29.62]
[1672956223563,10.0,13.486,13.482,29.62]
[1672956223775,222.31674483,13.487,13.482,66.721]
[1672956224301,259.40574483,13.487,13.482,29.62]
[1672956224615,0.06295062,13.489,13.482,29.62]
[1672956225982,222.31674483,13.488,13.482,66.722]
[1672956226192,10.0,13.487,13.482,66.722]
[1672956227032,0.06295062,13.489,13.482,66.722]
[1672956228924,222.31674483,13.488,13.482,66.722]
[1672956229133,10.0,13.487,13.482,66.722]
[1672956230074,222.31674483,13.488,13.482,66.722]
[1672956230283,222.31674483,13.487,13.482,66.722]
[1672956234284,222.31674483,13.487,13.483,10.0]
[1672956234495,222.31674483,13.488,13.486,29.52]
[1672956234701,0.06051928,13.492,13.487,39.69]
[1672956234917,0.06051928,13.492,13.489,29.67]
[1672956235123,222.56057846,13.495,13.49,10.0]
[1672956235441,222.56057846,13.495,13.492,10.0]
[1672956235757,0.06208399,13.498,13.494,39.62]
[1672956236072,0.064399,13.501,13.495,10.0]
[1672956236911,37.115399,13.501,13.496,66.844]
[1672956237542,0.064399,13.501,13.496,66.844]
[1672956238173,37.115399,13.501,13.496,66.844]
[1672956238387,37.115399,13.501,13.496,29.78]
[1672956239752,37.115399,13.501,13.496,66.844]
[1672956241117,222.5,13.498,13.496,29.78]
[1672956242169,222.5,13.5,13.496,29.78]
[1672956242381,10.0,13.499,13.496,29.78]
[1672956242588,10.0,13.499,13.495,29.62]
[1672956242794,222.5,13.497,13.495,29.62]
[1672956244372,37.062,13.497,13.495,29.62]
[1672956244587,222.5,13.496,13.495,29.62]
[1672956244901,222.5,13.496,13.495,66.687]
[1672956245428,259.564,13.496,13.495,29.62]
[1672956246057,259.562,13.497,13.495,29.62]
[1672956246373,222.5,13.497,13.495,29.62]
[1672956246898,222.5,13.497,13.495,66.685]
[1672956247212,222.564399,13.501,13.495,66.685]
[1672956247425,222.40023759,13.501,13.495,66.685]
[1672956247948,222.40023759,13.498,13.495,66.685]
[1672956248996,222.46260695,13.501,13.495,66.685]
[1672956250054,222.40023759,13.498,13.495,66.685]
[1672956250682,222.40023759,13.498,13.495,66.50754395]
[1672956250892,259.45923759,13.498,13.495,66.50754395]
[1672956251312,222.46260695,13.501,13.495,66.50754395]
[1672956252569,37.057,13.499,13.495,66.50754395]
[1672956252783,232.40023759,13.498,13.495,66.50754395]
[1672956253308,222.40023759,13.498,13.495,66.50754395]
[1672956253619,222.40023759,13.499,13.495,66.50754395]
[1672956253833,222.40023759,13.499,13.497,29.78]
[1672956254044,222.40023759,13.499,13.498,37.059]
[1672956254778,0.06236936,13.501,13.498,37.059]
[1672956254990,222.40023759,13.503,13.498,37.059]
[1672956255201,222.40023759,13.501,13.5,29.69]
[1672956255619,259.45023759,13.501,13.499,29.52]
[1672956256041,222.40023759,13.501,13.499,29.52]
[1672956256354,0.06983699,13.505,13.499,29.52]
[1672956256564,222.40023759,13.504,13.499,29.52]
[1672956256775,222.40023759,13.502,13.499,29.52]
[1672956256980,10.0,13.501,13.499,66.575]
[1672956257193,10.0,13.501,13.496,0.07128577]
[1672956257405,232.40023759,13.499,13.496,0.07128577]
[1672956257617,232.40023759,13.499,13.495,29.67]
[1672956257932,10.0,13.498,13.495,29.67]
[1672956258143,222.40023759,13.497,13.495,29.67]
[1672956258353,10.0,13.496,13.493,0.07118417]
[1672956258665,222.40023759,13.497,13.492,29.62]
[1672956259296,10.0,13.497,13.492,29.62]
[1672956259612,269.46223759,13.497,13.492,66.694]
[1672956261187,259.46223759,13.497,13.492,66.694]
[1672956262029,222.40023759,13.497,13.492,66.694]
[1672956262238,222.40023759,13.497,13.492,140.843]
[1672956262550,259.46023759,13.497,13.492,140.843]
[1672956264334,259.46023759,13.497,13.492,66.694]
[1672956264867,259.46023759,13.497,13.492,29.62]
[1672956265498,10.0,13.496,13.49,29.75349107]
[1672956265809,10.0,13.493,13.49,0.06349107]
[1672956266021,10.0,13.493,13.488,29.52]
[1672956266229,222.40023759,13.492,13.488,66.604]
[1672956266434,10.0,13.491,13.488,29.52]
[1672956266861,222.40023759,13.49,13.488,29.52]
[1672956267065,10.0,13.489,13.485,29.62]
[1672956267280,10.0,13.489,13.484,0.06698593]
[1672956267491,222.40023759,13.488,13.484,0.06698593]
[1672956267701,10.0,13.487,13.481,29.84728283]
[1672956268964,222.40023759,13.485,13.481,66.95128283]
[1672956269175,222.40023759,13.485,13.481,66.884]
[1672956269914,10.0,13.487,13.481,66.884]
[1672956270333,222.40023759,13.485,13.481,66.884]
[1672956270549,10.0,13.484,13.481,66.884]
[1672956271070,222.40023759,13.483,13.481,29.78]
[1672956271594,259.50123759,13.483,13.481,29.78]
[1672956271805,222.40023759,13.483,13.481,29.78]
[1672956272013,222.40023759,13.485,13.481,29.78]
[1672956272223,222.40023759,13.485,13.481,66.884]
[1672956273273,10.0,13.487,13.481,66.884]
[1672956273903,222.40023759,13.485,13.481,66.884]
[1672956275059,222.40023759,13.486,13.481,66.884]
[1672956278423,259.49123759,13.486,13.481,66.884]
[1672956279052,259.36163591,13.486,13.481,66.884]
[1672956280419,222.40023759,13.486,13.481,66.884]
[1672956283042,259.49123759,13.486,13.481,66.884]
[1672956283259,222.40023759,13.486,13.481,66.884]
[1672956284517,259.49123759,13.486,13.481,66.884]
[1672956285256,222.40023759,13.486,13.481,66.884]
[1672956285466,222.40023759,13.488,13.481,66.884]
[1672956285888,10.0,13.487,13.481,66.884]
[1672956286940,222.40023759,13.486,13.481,66.884]
[1672956287361,222.40023759,13.486,13.483,29.52]
[1672956287570,222.40023759,13.486,13.484,37.096]
[1672956289569,37.091,13.486,13.484,37.096]
[1672956293034,37.091,13.486,13.484,59.396]
[1672956293666,222.40023759,13.488,13.484,59.396]
[1672956293980,259.28031367,13.487,13.484,59.396]
[1672956294506,259.49023759,13.487,13.484,59.396]
[1672956294716,222.40023759,13.487,13.484,59.396]
[1672956294923,222.46206871,13.489,13.484,59.396]
[1672956295242,259.48823759,13.487,13.484,22.3]
[1672956296924,259.48823759,13.487,13.484,59.396]
[1672956297968,0.06183112,13.489,13.484,59.396]
[1672956297969,37.086,13.488,13.484,111.289]
[1672956298184,222.46206871,13.489,13.486,22.3]
[1672956298396,222.40023759,13.489,13.486,59.388]
[1672956298916,259.48423759,13.489,13.486,59.388]
[1672956300387,222.40023759,13.491,13.486,59.388]
[1672956300591,259.48223759,13.49,13.486,59.388]
[1672956300804,0.06797973,13.492,13.489,59.382]
[1672956301017,222.5,13.495,13.491,22.3]
[1672956301018,222.56866535,13.495,13.491,22.3]
[1672956301226,222.5,13.495,13.491,22.3]
[1672956301646,222.5,13.495,13.491,59.375]
[1672956302486,222.5,13.495,13.491,22.3]
[1672956302804,222.5,13.497,13.491,22.3]
[1672956303959,259.563,13.497,13.491,59.376]
[1672956306167,0.06759632,13.498,13.491,59.376]
[1672956306904,222.5,13.496,13.491,59.376]
[1672956308796,222.28678844,13.496,13.492,10.0]
[1672956309109,222.28678844,13.496,13.493,37.071]
[1672956309631,232.28678844,13.495,13.491,22.3]
[1672956309950,222.28678844,13.493,13.488,0.06157722]
[1672956310164,222.28678844,13.491,13.488,0.06157722]
[1672956310369,10.0,13.49,13.486,22.24]
[1672956311211,47.08,13.49,13.486,22.24]
[1672956311424,222.28678844,13.489,13.486,22.24]
[1672956311627,10.0,13.488,13.486,22.24]
[1672956312583,222.28678844,13.487,13.486,22.24]
[1672956313107,259.37478844,13.487,13.486,22.24]
[1672956313418,222.28678844,13.49,13.486,22.24]
[1672956313629,10.0,13.489,13.486,22.24]
[1672956313835,47.083,13.489,13.486,22.24]
[1672956314051,10.0,13.487,13.482,22.36390443]
[1672956314470,222.28678844,13.486,13.482,22.36390443]
[1672956314681,10.0,13.485,13.482,22.3]
[1672956314887,10.0,13.485,13.482,22.21355491]
[1672956315102,47.094,13.485,13.482,22.21355491]
[1672956315316,222.28678844,13.484,13.482,22.21355491]
[1672956315524,10.0,13.483,13.482,22.21355491]
[1672956316043,222.28678844,13.483,13.482,22.21355491]
[1672956317204,10.0,13.486,13.482,22.21355491]
[1672956317410,222.28678844,13.484,13.482,22.21355491]
[1672956317621,10.0,13.483,13.482,22.21355491]
[1672956318462,10.0,13.483,13.482,59.31555491]
[1672956318673,222.28678844,13.484,13.482,59.31555491]
[1672956319831,222.28678844,13.487,13.482,59.31555491]
[1672956320145,222.28678844,13.484,13.482,22.21355491]
[1672956323401,222.28678844,13.484,13.482,59.31455491]
[1672956324665,37.092,13.486,13.482,59.31455491]
[1672956324874,259.37878844,13.486,13.482,59.31455491]
[1672956326759,259.37578844,13.487,13.482,133.51855491]
[1672956326971,10.0,13.486,13.482,59.31455491]
[1672956327499,222.28678844,13.485,13.482,10.0]
[1672956327712,222.28678844,13.485,13.484,22.3]
[1672956328659,10.0,13.484,13.479,1804.06380697]
[1672956328861,10.0,13.484,13.482,22.24]
[1672956329598,259.38678844,13.483,13.482,22.24]
[1672956332857,259.38678844,13.483,13.479,0.06380697]
[1672956333070,10.0,13.482,13.476,0.0654]
[1672956333282,222.28678844,13.48,13.476,0.0654]
[1672956333490,10.0,13.479,13.475,22.3]
[1672956333702,10.0,13.479,13.475,59.419]
[1672956333909,222.28678844,13.478,13.475,22.3]
[1672956334118,10.0,13.477,13.475,22.3]
[1672956334540,222.28678844,13.476,13.475,22.3]
[1672956335176,222.28678844,13.476,13.473,22.33122489]
[1672956335386,259.40478844,13.476,13.472,22.3]
[1672956335594,10.0,13.475,13.472,22.3]
[1672956335804,222.28678844,13.473,13.472,22.3]
[1672956336015,259.41378844,13.473,13.472,22.3]
[1672956336852,74.238,13.476,13.472,22.3]
[1672956337171,10.0,13.475,13.472,22.3]
[1672956337381,10.0,13.477,13.472,22.3]
[1672956337908,259.40978844,13.475,13.472,59.429]
[1672956342741,222.28678844,13.476,13.472,59.429]
[1672956342945,9.76824485,13.475,13.472,59.429]
[1672956343267,269.17703329,13.475,13.472,59.429]
[1672956343580,259.40878844,13.475,13.472,59.429]
[1672956344944,259.40878844,13.475,13.472,59.33034201]
[1672956346946,259.40878844,13.475,13.472,22.20134201]
[1672956355669,259.40878844,13.475,13.472,59.33034201]
[1672956355880,259.40878844,13.475,13.472,22.20134201]
[1672956358815,222.34868945,13.479,13.474,22.3]
[1672956359031,222.34868945,13.479,13.476,22.3]
[1672956359345,222.28678844,13.479,13.476,22.3]
[1672956359868,0.062058,13.482,13.479,0.17472995]
[1672956360079,222.28678844,13.482,13.479,0.17472995]
[1672956360290,10.0,13.481,13.479,0.17472995]
[1672956360923,222.28678844,13.482,13.479,0.17472995]
[1672956361234,222.28678844,13.48,13.479,0.17472995]
[1672956361657,259.39478844,13.48,13.479,0.17472995]
[1672956364805,259.39178844,13.481,13.479,37.28472995]
[1672956365013,259.17081236,13.481,13.479,37.28472995]
[1672956365858,222.06581236,13.481,13.479,37.28472995]
[1672956366069,222.06581236,13.483,13.479,37.28472995]
[1672956366379,10.0,13.481,13.479,37.28472995]
[1672956367008,269.17181236,13.481,13.479,0.17472995]
[1672956368906,10.0,13.48,13.476,0.06902191]
[1672956369120,222.06581236,13.478,13.473,22.26]
[1672956369319,10.0,13.477,13.473,22.26]
[1672956369954,222.06581236,13.476,13.473,22.26]
[1672956370169,222.06581236,13.476,13.47,74.27]
[1672956370170,10.0,13.475,13.471,22.26]
[1672956370483,222.06581236,13.474,13.471,22.26]
[1672956371322,222.06581236,13.472,13.471,22.26]
[1672956372581,222.13333612,13.477,13.471,22.26]
[1672956373530,259.19581236,13.472,13.471,22.26]
[1672956383721,259.06135385,13.472,13.471,22.26]
[1672956384557,222.06581236,13.472,13.471,59.392]
[1672956384772,222.06581236,13.472,13.471,22.26]
[1672956385086,259.19481236,13.472,13.471,22.26]
[1672956386981,259.19481236,13.472,13.471,22.14073417]
[1672956387400,259.19481236,13.472,13.47,22.26]
[1672956388873,259.19481236,13.472,13.47,59.395]
[1672956389607,222.06581236,13.473,13.471,22.3]
[1672956389816,0.06752376,13.477,13.472,69.429]
[1672956390238,0.06752376,13.477,13.476,22.3]
[1672956390442,222.5,13.478,13.476,22.3]
[1672956390763,259.614,13.478,13.476,22.3]
[1672956391394,259.614,13.478,13.476,59.418]
[1672956391920,222.5,13.478,13.477,22.3]
[1672956392133,259.611,13.479,13.477,59.415]
[1672956393814,222.56057039,13.481,13.477,59.415]
[1672956394026,222.5,13.481,13.477,59.415]
[1672956394865,37.11,13.479,13.477,59.415]
[1672956397070,37.106,13.481,13.478,22.3]
[1672956397383,222.5,13.483,13.479,37.11]
[1672956398122,37.105,13.481,13.479,37.11]
[1672956398330,222.5,13.483,13.48,22.24]
[1672956398540,222.5,13.483,13.479,37.11]
[1672956398541,222.5,13.483,13.482,22.3]
[1672956399168,222.5,13.483,13.482,59.402]
[1672956400326,74.24697952,13.486,13.482,59.402]
[1672956400327,259.595,13.485,13.482,59.402]
[1672956400538,222.5,13.485,13.484,22.26]
[1672956400742,222.38433602,13.485,13.484,22.26]
[1672956401272,222.38433602,13.487,13.484,59.356]
[1672956403687,222.44521723,13.49,13.484,59.356]
[1672956404110,222.38433602,13.488,13.484,59.356]
[1672956405264,222.44521723,13.49,13.484,59.356]
[1672956405896,222.38433602,13.487,13.484,59.356]
[1672956406842,259.47333602,13.487,13.484,59.356]
[1672956407474,222.38433602,13.488,13.484,59.356]
[1672956408417,222.44521723,13.49,13.484,59.356]
[1672956408945,259.46933602,13.488,13.484,59.356]
[1672956410518,10.0,13.487,13.484,22.26]
[1672956410833,259.47533602,13.486,13.484,22.26]
[1672956415142,259.26841061,13.486,13.484,22.26]
[1672956417453,259.26841061,13.486,13.483,22.3]
[1672956420598,259.26841061,13.486,13.481,22.3]
[1672956428174,333.69033602,13.482,13.48,0.00331705]
[1672956428381,343.69033602,13.482,13.475,22.3]
[1672956428591,10.0,13.481,13.475,22.3]
[1672956428908,10.0,13.478,13.475,22.3]
[1672956429432,222.38433602,13.477,13.475,22.3]
[1672956430689,222.38433602,13.478,13.475,22.3]
[1672956430907,37.118,13.476,13.475,22.3]
[1672956431219,259.50233602,13.476,13.475,22.3]
[1672956431852,259.50233602,13.476,13.472,22.3307823]
[1672956432059,259.50233602,13.476,13.472,22.26]
[1672956432481,333.73933602,13.476,13.472,22.26]
[1672956433631,259.50233602,13.476,13.472,22.26]
[1672956438471,259.50233602,13.476,13.472,59.388]
[1672956438783,259.50233602,13.476,13.472,22.26]
[1672956441615,259.28487397,13.476,13.472,22.26]
[1672956455918,259.19774505,13.476,13.472,22.26]
[1672956457388,259.19774505,13.476,13.471,22.3]
[1672956457599,259.19774505,13.476,13.471,59.432]
[1672956457914,259.19774505,13.476,13.471,22.3]
[1672956459912,259.19774505,13.476,13.471,59.431]
[1672956461803,259.19774505,13.476,13.471,59.432]
[1672956462745,259.19774505,13.476,13.471,22.3]
[1672956465902,259.19774505,13.476,13.471,59.432]
[1672956467899,259.19774505,13.476,13.471,22.3]
[1672956470315,259.03586533,13.476,13.471,22.3]
[1672956473474,259.03586533,13.476,13.471,59.432]
[1672956473784,259.03586533,13.476,13.471,22.3]
[1672956474312,259.03586533,13.476,13.471,59.432]
[1672956474524,259.03586533,13.476,13.473,22.3]
[1672956475673,222.38433602,13.476,13.473,22.3]
[1672956475888,222.38433602,13.475,13.473,59.426]
[1672956476519,259.50633602,13.475,13.473,22.3]
[1672956479361,259.50633602,13.475,13.473,22.170107]
[1672956479885,259.50633602,13.475,13.473,59.296107]
[1672956482090,259.50433602,13.476,13.473,59.296107]
[1672956482506,222.38433602,13.476,13.473,59.296107]
[1672956485030,259.56172215,13.478,13.473,59.296107]
[1672956487343,259.56172215,13.478,13.475,22.26]
[1672956487656,259.49833602,13.478,13.475,22.26]
[1672956488916,259.49833602,13.478,13.475,59.381]
[1672956489864,333.72433602,13.478,13.475,22.26]
[1672956490813,333.72433602,13.478,13.475,59.381]
[1672956491967,333.72433602,13.478,13.475,59.38]
[1672956492281,333.56940057,13.478,13.475,59.38]
[1672956493121,10.0,13.477,13.472,0.06588007]
[1672956493332,222.22940057,13.475,13.472,22.26588007]
[1672956493543,10.0,13.474,13.472,22.26]
[1672956493746,222.22940057,13.473,13.47,22.24]
[1672956494377,259.35840057,13.472,13.47,22.24]
[1672956495535,10.0,13.471,13.469,1804.0]
[1672956495750,333.63440057,13.47,13.469,1804.0]
[1672956495960,333.63440057,13.47,13.467,0.07138526]
[1672956496170,10.0,13.469,13.466,22.3]
[1672956496381,222.22940057,13.467,13.466,22.3]
[1672956496695,222.22940057,13.467,13.466,59.446]
[1672956497010,222.22940057,13.467,13.466,22.3]
[1672956497425,259.37240057,13.467,13.466,22.3]
[1672956497843,259.37240057,13.467,13.466,22.34]
[1672956501737,259.37240057,13.467,13.465,22.36]
[1672956502261,10.0,13.466,13.465,22.36]